Cogmind - Beta 17.1 @@@ ROGUE MODE // 2026.09.12 @ 13:58:43 Player: puppuppit Result: Destroyed by P-70 Sage with Tesla Rifle Performance ------------- Evolutions (6) 3000 Regions Visited (14) 2800 Robots Destroyed (390) 1950 Value Destroyed (15490) 15490 Prototype IDs (65) 1300 Alien Tech Used (1) 200 Bonus (10585) 10585 TOTAL SCORE: 35325 Bonus ------- Triggered High Security 1500 High Alert Combat Kills 8025 Follower Combat Kills 3409 Registered with UFD 300 Met Optimus in HQ 500 Met Warlord at Base 500 MAIN.C Attacked Warlord 500 Warlord Defense Kills 1180 Friendly Fire -5329 Cogmind --------- Core Integrity 0/1150 Matter 300/300 Energy 66/100 System Corruption 22% Temperature Cool (9) Movement Core (100) Ox1 Location -4/Armory Parts ------- > --- POWER (3) -------- (None) > --- PROPULSION (6) --- (None) > --- UTILITY (7) ------ Advanced Coolant Injector Advanced Targeting Computer Advanced Targeting Computer Improved Armor Integrity Analyzer Amulet of Y3-NDR > --- WEAPON (4) ------- Vortex Lance > --- INVENTORY (5) ---- Experimental Matter Compressor (500) Long-range Tractor Beam Gamma Bomb Array Gamma Bomb Array Peak State ------------ > --- POWER ------------ Backup Power VII Heavy Antimatter Reactor Heavy Antimatter Reactor > --- PROPULSION ------- Combat Gravmag System Combat Gravmag System Combat Gravmag System Combat Gravmag System Combat Gravmag System Backup Propulsion VII > --- UTILITY ---------- Advanced Cooling System Large Storage Unit Advanced Targeting Computer Advanced Targeting Computer Improved Armor Integrity Analyzer Advanced Recoil Stabilizer System Mapper > --- WEAPON ----------- Heavy Gauss Cannon Heavy Gauss Cannon Heavy Gauss Cannon Compact Linear Accelerator > --- INVENTORY -------- Vortex Chain Reactor Combat Gravmag System Combat Gravmag System Compact Matter Pod Experimental Matter Compressor Advanced Recoil Stabilizer Makeshift Ablative Armor Graphene Brace Long-range Tractor Beam Amulet of Y3-NDR Hypervelocity Gauss Cannon Heavy Gauss Cannon Heavy Shock Bomb Launcher Vortex Lance [Rating: 136] Favorites ----------- Power Subdweller Power Source Engine Subdweller Power Source Power Core Neutrino Core Reactor Vortex Chain Reactor Propulsion Combat Gravmag System Treads Light Treads Leg Myomer Leg Wheel Compact Wheel Hover Unit Combat Gravmag System Flight Unit Nuclear Pulse Array Utility Advanced Targeting Computer Device V3-11A's Pendant Storage Large Storage Unit Processor Advanced Targeting Computer Hackware Hacking Suite Protection Core Shielding Weapon Mass Driver Energy Gun Quantum Rifle Energy Cannon Advanced Plasma Cannon Ballistic Gun Heavy Battle Rifle Ballistic Cannon Mass Driver Launcher Rocket Launcher Special Weapon Improved Remote Datajack Slashing Weapon Scythe Piercing Weapon Vortex Lance Build | -11 -10 -10 -10 -7 -7 -5 -5 -5 -5 -5 -5 -4 -4 -4 ------- Run | Yrd Mat Min Sub Rec Scr Fac Was Fac Upp Upp War Pro Fac Arm Slots Evolved 12 | . . . . . . 10 . . . . . . 2 . Power 1 | . . . . . . 1 . . . . . . . . Propulsion 4 | . . . . . . 4 . . . . . . . . Utility 5 | . . . . . . 3 . . . . . . 2 . Weapon 2 | . . . . . . 2 . . . . . . . . Parts Attached 273 | 7 9 1 10 5 18 50 4 85 1 2 11 4 31 35 Power 41 | 1 1 . 2 . 3 10 . 8 . . 2 . 8 6 Engine 13 | 1 1 . 2 . 2 2 . 3 . . . . 2 . Core 22 | . . . . . 1 8 . 5 . . 1 . 4 3 Reactor 6 | . . . . . . . . . . . 1 . 2 3 Propulsion 69 | 2 . . 2 2 7 12 1 25 . . 1 . 4 13 Treads 10 | 2 . . 2 2 4 . . . . . . . . . Leg 3 | . . . . . . . . . . . . . . 3 Wheel 2 | . . . . . 2 . . . . . . . . . Hover 37 | . . . . . . . . 22 . . 1 . 4 10 Flight 17 | . . . . . 1 12 1 3 . . . . . . Utility 95 | 2 5 . 1 2 6 18 1 32 1 2 4 2 15 4 Device 50 | 1 . . 1 . 2 6 1 20 . 2 3 . 10 4 Storage 10 | 1 1 . . . 2 1 . 4 . . 1 . . . Processor 17 | . 3 . . . 1 6 . 4 1 . . . 2 . Hackware 12 | . 1 . . 2 . 4 . 2 . . . 1 2 . Protection 6 | . . . . . 1 1 . 2 . . . 1 1 . Artifact . | . . . . . . . . . . . . . . . Weapon 68 | 2 3 1 5 1 2 10 2 20 . . 4 2 4 12 Energy Gun 1 | . . . . . . . . . . . . . . 1 Energy Cannon 2 | . . . . . . . . 2 . . . . . . Ballistic Gun 21 | 2 1 . . . . 1 2 6 . . 2 . . 7 Ballistic Cannon 29 | . 2 . 4 1 2 3 . 9 . . 1 2 4 1 Launcher 10 | . . 1 1 . . 5 . 1 . . . . . 2 Special Weapon 2 | . . . . . . 1 . 1 . . . . . . Impact Weapon . | . . . . . . . . . . . . . . . Slashing Weapon 1 | . . . . . . . . 1 . . . . . . Piercing Weapon 2 | . . . . . . . . . . . 1 . . 1 Special Melee Weapon . | . . . . . . . . . . . . . . . Unidentified Prototypes 26 | . . . 1 . . 8 1 5 . 2 7 1 1 . Corrupted Parts 4 | . . . . . . 3 . . . . . . . 1 System Corruption 18 | . . . . . . 8 . . . . . . . 10 Parts Lost 69 | . 1 . . . . 11 1 11 . . . 1 14 30 Power 10 | . . . . . . 1 . 1 . . . 1 3 4 Propulsion 31 | . . . . . . 9 1 2 . . . . 4 15 Utility 15 | . 1 . . . . 1 . 4 . . . . 4 5 Weapon 13 | . . . . . . . . 4 . . . . 3 6 Highest Loss Streak 17 | . 1 . . . . 8 1 2 . . . 1 7 17 To Critical Strikes 2 | . . . . . . 1 . . . . . . 1 . Average Backups 13 | . 11 18 16 11 10 12 4 10 15 15 13 14 13 12 Power . | . . 1 . . . 1 . . 1 1 . . . . Propulsion 1 | . . 1 1 1 1 . . 3 5 4 2 1 1 1 Utility 7 | . 6 11 9 6 6 5 1 3 6 7 7 8 6 5 Weapon 3 | . 3 4 5 3 2 4 3 2 3 2 2 3 4 4 Tool/Special . | . . . . . . . . . . . . . . . Unused Backups 54 | . 6 2 14 1 11 4 1 5 . 1 1 2 2 4 Power 1 | . . . . . . . . 1 . . . . . . Propulsion 5 | . . . . . 1 . . 2 . . . 2 . . Utility 35 | . 6 2 11 1 5 4 . 2 . . 1 . 2 1 Weapon 11 | . . . 3 . 3 . 1 . . 1 . . . 3 Tool/Special 2 | . . . . . 2 . . . . . . . . . Average Slot Usage (%) 91 | . 99 100 100 99 95 63 39 92 94 92 91 88 96 83 Engine 7 | . 14 14 14 14 10 2 3 4 . . . . 2 . Core 3 | . . . . . 2 6 1 6 11 11 11 . 9 5 Treads 13 | . 27 28 28 28 21 . . . . . . . . . Hover 10 | . . . . . . . 1 24 29 28 31 33 29 25 Flight 1 | . . . . . 1 12 5 4 . . . . . . Device 4 | . 3 . 10 . . 1 4 6 5 5 5 4 8 10 Storage 9 | . 14 14 14 10 13 4 . 3 5 5 5 5 5 4 Processor 8 | . 9 14 3 . . 14 . 4 15 16 16 15 15 15 Hackware 6 | . 1 . . 16 14 14 17 11 . . . . 5 2 Ballistic Gun 1 | . 6 . . . . . 2 10 . . . . . 6 Ballistic Cannon 19 | . 20 27 26 27 26 4 . 8 17 16 19 21 19 6 Peak Build Rating 136 | 9 13 13 21 23 29 117 54 103 93 95 114 123 136 127 Average Rating 57 | 6 10 12 18 20 24 94 40 90 90 91 97 108 124 107 On Entrance 51 | . 9 12 13 21 18 28 27 46 93 90 90 100 123 107 Avg Prop Armor Cover (%) 12 | . . . . . 20 . 4 2 . . 1 2 . 1 Naked Turns . | . . . . . . . . . . . . . . . Heaviest Build 113 | 12 51 51 55 54 62 48 11 113 77 76 87 111 91 87 Greatest Support 90 | 40 40 40 40 48 56 44 8 84 77 77 90 90 90 84 Greatest Overweight (x) 4 | . 1 1 1 1 4 1 1 1 . . 1 1 1 2 Average Overweight (x) . | . . 1 1 . . . . . . . . . . . Largest Inventory Capacity 25 | 8 20 20 20 20 20 15 5 25 15 15 15 15 15 15 Average Capacity 15 | 7 15 20 20 16 15 14 5 11 15 15 15 15 15 14 Most Carried 20 | 2 16 20 20 20 20 15 5 15 15 15 15 15 15 15 Average Carried 15 | . 11 18 19 16 14 14 4 10 15 14 14 14 14 13 Final Capacity 20 | 8 20 20 20 20 15 15 5 15 15 15 15 15 15 15 Final Carried 20 | 1 16 20 20 20 15 15 5 15 15 15 15 15 14 7 Class Distribution -------------------- 50% | Mutant 18% | Scientist-Gunner 13% | Hacker-Mutant 9% | Hacker-Gunner Dominant Class ---------------- Mutant | -10/Materials Mutant | -10/Mines Mutant | -10/Subcaves Mutant | -7/Recycling Mutant | -7/Scraptown Hacker-Mutant | -5/Factory Hacker-Mutant | -5/Waste Hacker-Gunner | -5/Factory Scientist-Gunner | -5/Upper Caves Scientist-Gunner | -5/Upper Caves Scientist-Gunner | -5/Warlord Scientist-Gunner | -4/Proximity Caves Hacker-Gunner | -4/Factory Scavenger-Gunner | -4/Armory Resources | -11 -10 -10 -10 -7 -7 -5 -5 -5 -5 -5 -5 -4 -4 -4 ----------- Run | Yrd Mat Min Sub Rec Scr Fac Was Fac Upp Upp War Pro Fac Arm Matter Collected 23899 | 334 985 242 1419 421 798 3827 1043 3958 90 48 2464 1582 3899 2789 Remotely 2347 | . . . . . . . . 658 . . 1115 518 56 . Salvage Created 17372 | 201 931 115 791 558 . 2375 1171 2745 58 . 523 962 3407 3535 Parts 696 | 25 60 6 57 17 . 101 3 108 1 . 15 18 120 165 Haulers Intercepted 11 | . 2 . . . . 2 . 3 . . . . 4 . Recyclers Shooed 24 | . 4 1 . 1 . 8 . 6 . . . 1 3 . Parts Field Recycled . | . . . . . . . . . . . . . . . Retrieved Matter . | . . . . . . . . . . . . . . . Parts Self-Destructed 48 | . . . 12 . . . . . 1 . . 35 . . Prevented 6 | . . . . . . . . . . . . 6 . . Parts Restored . | . . . . . . . . . . . . . . . Kills | -11 -10 -10 -10 -7 -7 -5 -5 -5 -5 -5 -5 -4 -4 -4 ------- Run | Yrd Mat Min Sub Rec Scr Fac Was Fac Upp Upp War Pro Fac Arm Combat Hostiles Destroyed 252 | . 15 3 10 . . 47 5 36 1 . 11 20 46 58 Melee 4 | . . . . . . . . 1 . . . . . 3 Guns 39 | . 3 . . . . . . 6 . . . . . 30 Cannons 128 | . 12 1 3 . . 11 . 24 1 . 10 15 34 17 AOE 71 | . . 2 7 . . 30 5 5 . . 1 5 10 6 Classes Destroyed 22 | 3 7 . 1 . . 3 1 3 . . 3 . 1 . Worker 19 | 2 2 . . . . 7 . 7 . . . . 1 . Builder 15 | . 2 . . . . 4 . 1 . . . . 8 . Tunneler 6 | 5 . . . . . . . 1 . . . . . . Hauler 11 | . 2 . . . . 2 . 3 . . . . 4 . Recycler 37 | 1 4 2 . 8 . 6 . 8 . . . . 8 . Mechanic 3 | . 1 . . . . . . 2 . . . . . . Operator 7 | . 2 . . . . . . 2 . . . . 1 2 Watcher 15 | . 3 . . . . 2 . 2 . . . 2 6 . Swarmer 47 | . 6 3 2 . . 15 . 5 . . 1 6 5 4 Saboteur 11 | . . . . . . . . 2 . . . . . 9 Grunt 82 | . 9 . . . . 15 . 14 . . 8 1 16 19 Brawler 7 | . . . . . . . . . . . . 4 1 2 Duelist 6 | . . . . . . . . 1 . . . 2 . 3 Protector 2 | . . . . . . . . . . . 1 . 1 . Sentry 18 | . . . . . . 3 . 4 1 . . 2 1 7 Demolisher 1 | . . . . . . . . 1 . . . . . . Specialist 5 | . . . . . . . . . . . 1 . . 4 Hunter 21 | . . . . . . 7 . 3 . . . . 11 . Programmer 33 | . . . . . . 7 . 6 . . . . 10 10 Behemoth 1 | . . . . . . . . . . . . . 1 . Compactor 5 | . . . . . . . 5 . . . . . . . Subdweller 28 | . . . 26 1 . 1 . . . . . . . . Thug 3 | . . . 1 . . . . 1 . . 1 . . . Savage 5 | . . . . . . . . . . . 1 4 . . Butcher 1 | . . . . . . . . . . . . 1 . . Bouncer 1 | . . . . . . . . . . . 1 . . . Best Kill Streak 14 | 5 5 3 3 3 . 8 3 10 1 . 7 5 8 14 Combat Bots Only 14 | . 3 3 3 . . 7 3 5 1 . 7 5 7 14 Max Kills in Single Turn 6 | 1 2 2 6 1 . 4 2 3 1 . 2 3 4 3 Gunslinging 1 | . . . . . . . . . . . . . . 1 Exploded 3 | . . 2 2 . . 3 2 3 . . 1 3 2 2 Melee 1 | . . . . . . . . 1 . . . . . 1 Uniques/NPCs Destroyed . | . . . . . . . . . . . . . . . Combat | -11 -10 -10 -10 -7 -7 -5 -5 -5 -5 -5 -5 -4 -4 -4 -------- Run | Yrd Mat Min Sub Rec Scr Fac Was Fac Upp Upp War Pro Fac Arm Hostile Shots Fired 1330 | . 52 5 30 . . 284 1 221 19 . 29 28 261 400 Missed 517 | . 14 2 11 . . 115 . 85 8 . 15 10 113 144 Hits 813 | . 38 3 19 . . 169 1 136 11 . 14 18 148 256 Melee 15 | . . . . . . . 1 1 . . . . . 13 Projectile 798 | . 38 3 19 . . 169 . 135 11 . 14 18 148 243 AOE 4 | . . . . . . . . 2 . . 2 . . . Critical Strikes 34 | . 1 . . . . 11 1 9 1 . . . 6 5 Actively Blocked 2 | . . . . . . . . 1 1 . . . . . Part Disruptions 5 | . . . . . . . . 1 . . . . 1 3 Damage Taken 15807 | . 432 52 604 . . 3114 43 3012 203 65 337 305 2735 4905 Core 2378 | . 72 15 143 . . 467 43 338 51 12 86 . 161 990 Absorbed by Shields 26 | . . . . . . . . . . . . . . 26 Redirected to Shielding 65 | . . . . . . 12 . 26 22 . . 5 . . Ignored by Resistances 30 | . . . . . . 30 . . . . . . . . Regen/Repaired (Parts) 831 | . 161 . . . . 200 3 21 . . 48 . 287 111 Core Remaining (%) 36 | 100 . . . . 8 . . . . . . . . . Volleys Fired 897 | 16 71 9 103 14 . 208 20 148 2 1 45 51 104 105 Largest 4 | 2 2 2 2 2 . 3 1 4 3 1 4 4 4 4 Hottest 242 | 40 66 66 70 70 . 134 46 233 141 47 199 199 216 242 Shots Fired 2049 | 32 143 18 143 33 . 255 19 444 6 1 168 133 364 290 Gun 473 | 32 66 . . . . . 3 201 . . . . . 171 Cannon 1395 | . 77 17 76 33 . 201 . 234 6 1 165 127 350 108 Launcher 181 | . . 1 67 . . 54 16 9 . . 3 6 14 11 Special . | . . . . . . . . . . . . . . . Kinetic 1861 | 32 143 17 76 33 . 201 3 431 6 1 165 127 350 276 Thermal 7 | . . . . . . . . 4 . . . . . 3 Explosive 113 | . . 1 67 . . 25 16 4 . . . . . . Electromagnetic 68 | . . . . . . 29 . 5 . . 3 6 14 11 Robot Hit Streak 29 | 6 12 4 15 8 . 8 7 29 5 . 10 7 20 24 Robot Miss Streak 6 | 3 4 3 4 4 . 5 1 6 1 . 4 3 2 3 Penetration Max 4 | . . . . . . . . 1 . . 1 . 1 4 Secondary Targets 8 | . . . . . . . . . . . . . . 8 Max Gunslinging Chain 2 | . . . . . . . . . . . . . . 2 Shots Hit Robots 1041 | 20 88 9 49 16 . 112 13 224 5 . 42 42 224 197 Core Hits 652 | 11 42 3 48 10 . 102 13 103 2 . 32 27 122 137 Critical Kills 40 | . . . . . . 2 . 8 . . 4 . 3 23 Critical Parts Destroyed 77 | . . . . . . 7 . 9 . . 4 . 9 48 Critical Strikes 202 | . 2 3 1 . . 15 . 30 1 . 14 7 50 79 Meltdown 1 | . . . . . . . . 1 . . . . . . Destroy 122 | . . . . . . 11 . 16 . . 8 . 13 74 Blast 79 | . 2 3 1 . . 4 . 13 1 . 6 7 37 5 Melee Attacks 5 | . . . . . . . . . . . 1 . . 4 Impact . | . . . . . . . . . . . . . . . Slashing . | . . . . . . . . . . . . . . . Piercing . | . . . . . . . . . . . . . . . Entropic 5 | . . . . . . . . . . . 1 . . 4 Sneak Attacks . | . . . . . . . . . . . . . . . Combat Hostiles . | . . . . . . . . . . . . . . . Follow-up Attacks . | . . . . . . . . . . . . . . . Damage Inflicted 49623 | 200 1427 372 3792 408 . 8618 3486 7586 132 . 3164 2494 11571 6373 Guns 5238 | 200 499 . . . . . 41 2046 . . . . . 2452 Cannons 26779 | . 928 220 911 408 . 3318 . 4573 132 . 2977 1994 8802 2516 Explosions 17490 | . . 152 2881 . . 5300 3445 967 . . 187 483 2769 1306 Melee 79 | . . . . . . . . . . . . . . 79 Ramming 37 | . . . . . . . . . . . . 17 . 20 Kinetic 31922 | 200 1427 220 911 408 . 3318 41 6552 132 . 2977 1994 8802 4940 Thermal 1967 | . . . . . . 382 . 280 . . . . 1056 249 Explosive 10772 | . . 152 2881 . . 3527 3445 227 . . . . 540 . Electromagnetic 4846 | . . . . . . 1391 . 527 . . 187 483 1173 1085 Impact . | . . . . . . . . . . . . . . . Slashing . | . . . . . . . . . . . . . . . Piercing . | . . . . . . . . . . . . . . . Entropic 79 | . . . . . . . . . . . . . . 79 Highest Corruption 44 | . 5 5 5 6 . 17 44 44 4 4 4 . 5 22 Average Corruption 6 | . 4 5 5 5 . 3 33 9 4 4 4 . 2 17 Corruption Purged 52 | . . . . . . 3 . 49 . . . . . . Corruption Blocked . | . . . . . . . . . . . . . . . Effects 421 | . 27 29 113 62 . 23 20 49 5 5 . . 25 63 Message Errors 96 | . 9 6 26 12 . 6 6 6 2 . . . 5 18 Matter Fused 76 | . 6 8 22 12 . 4 3 6 1 1 . . 6 7 Heat Flow Errors 51 | . 5 1 16 3 . . 1 9 . . . . 6 10 Energy Discharges 54 | . 1 3 19 9 . 2 1 8 . 1 . . 3 7 Parts Rejected 6 | . . . . . . . 2 2 . . . . 1 1 Parts Fused 3 | . . . 1 1 . . . . . . . . . 1 Data Loss (minor) 61 | . 5 9 10 15 . 4 3 9 . 1 . . 3 2 Data Loss (major) 14 | . . 1 4 2 . 2 . 4 . 1 . . . . Misfires 18 | . 1 1 9 5 . . . . . . . . 1 1 Alerts 11 | . . . 4 3 . . . 1 2 1 . . . . Misdirections 11 | . . . . . . . 3 1 . . . . . 7 Weapon Failures 20 | . . . 2 . . 5 1 3 . . . . . 9 Overload Shots . | . . . . . . . . . . . . . . . Overflow Damage 1176 | . 4 16 . . . 414 . 173 . . . 97 436 36 Projectiles 696 | . 4 8 . . . 156 . 126 . . . 59 329 14 Explosions 480 | . . 8 . . . 258 . 47 . . . 38 107 22 Melee . | . . . . . . . . . . . . . . . Knockbacks 150 | . 6 2 7 4 . 14 . 43 . . 7 3 57 7 Impact . | . . . . . . . . . . . . . . . Kinetic 145 | . 6 2 7 4 . 14 . 41 . . 6 3 55 7 Secondary 5 | . . . . . . . . 2 . . 1 . 2 . Self-Inflicted Damage 324 | . . 31 199 . . 8 . 78 . . . 8 . . Shots 12 | . . 1 8 . . 1 . 2 . . . . . . Rammed 1 | . . . . . . . . . . . . 1 . . Targets Rammed 7 | . . . . . . . . . . . . 1 . 6 Kicked 6 | . . . . . . . . . . . . . . 6 Crushed . | . . . . . . . . . . . . . . . Highest Temperature 398 | . 197 194 255 213 . 249 289 389 174 327 159 336 374 398 Average Temperature 92 | . 36 36 90 95 . 45 98 108 86 125 50 92 128 95 Received Heat Transfer 2452 | . 162 . 45 . . 453 . 681 36 . . 9 165 901 Effects 25 | . . . 1 . . 6 . 4 . . . 9 5 . Shutdowns 1 | . . . . . . . . . . . . . 1 . Energy Bleed 9 | . . . 1 . . 1 . . . . . 4 3 . Interference 15 | . . . . . . 5 . 4 . . . 5 1 . Siege Activations . | . . . . . . . . . . . . . . . Martial Activations . | . . . . . . . . . . . . . . . Shielding Activations . | . . . . . . . . . . . . . . . Robots Disrupted . | . . . . . . . . . . . . . . . Combat Hostiles . | . . . . . . . . . . . . . . . Robots Corrupted 14 | . . . . . . 7 . 1 . . . 2 2 2 Combat Hostiles 10 | . . . . . . 6 . . . . . . 2 2 Parts Fried 18 | . . . . . . 6 . 2 . . . 3 3 4 Impact Corruptions . | . . . . . . . . . . . . . . . Robots Melted 1 | . . . . . . . . 1 . . . . . . Combat Hostiles . | . . . . . . . . . . . . . . . Parts Melted 8 | . . . . . . 1 . 1 . . . . . 6 Heat Transferred 1623 | . . . . . . 200 . 300 . . . . 986 137 Parts Sabotaged 16 | . . . . . . . . 3 . . . . . 13 Parts Stolen . | . . . . . . . . . . . . . . . Parts Stripped . | . . . . . . . . . . . . . . . Power Chain Reactions 18 | . . . . . . 2 . 1 . . . 1 8 6 Alert | -11 -10 -10 -10 -7 -7 -5 -5 -5 -5 -5 -5 -4 -4 -4 ------- Run | Yrd Mat Min Sub Rec Scr Fac Was Fac Upp Upp War Pro Fac Arm Maximum Alert Level 5 | . . . . . . 5 3 5 . . . . 5 5 Low Security (%) 47 | 100 100 100 . 100 . 15 . . . . . . 16 . Level 1 1 | . . . . . . 9 . . . . . . . . Level 2 7 | . . . . . . 23 . 14 . . . . 1 . Level 3 13 | . . . . . . 27 100 17 . . . . 25 . Level 4 14 | . . . . . . 8 . 27 . . . . 39 49 Level 5 10 | . . . . . . 14 . 39 . . . . . 8 High Security 4 | . . . . . . . . 1 . . . . 15 42 Max Security . | . . . . . . . . . . . . . . . Peak Influence 3312 | 15 189 90 . 51 . 2083 866 2745 . . . . 2738 3312 Initial 1336 | . . 51 . 33 . . 734 547 . . . . 126 1336 Average 714 | 3 84 9 . 8 . 801 818 1515 . . . . 1174 1961 Influence Increases 15820 | 40 612 101 293 320 . 3397 208 3492 260 . 325 595 3404 2773 Destroy 0b10 Robot/C 6300 | . 300 60 180 80 . 1200 . 1220 20 . 200 440 1300 1300 Destroy 0b10 Robot/NC 635 | 40 80 10 . 40 . 130 . 145 . . 5 10 165 10 Destroy Leader 1074 | . 80 10 10 . . 230 . 264 . . . 20 240 220 Allied During Kill 1359 | . . . 88 32 . 149 . 558 . . . 110 294 128 Trap Triggered on 0b10 30 | . . . . . . 30 . . . . . . . . Successful Hack 254 | . 27 . . 86 . 76 . 48 . . . . 9 8 Select Force Hacks 210 | . 60 . . 60 . 90 . . . . . . . . Disable Machine 1470 | . 45 15 . 15 . 225 . 240 . . . . 780 150 Destroy Structure 2058 | . 5 6 . 7 . 622 178 522 . . . . 556 162 Partial Spotted 210 | . . . . . . 105 30 30 . . . . . 45 Lose Combat Pursuer 2220 | . 15 . 15 . . 540 . 465 240 . 120 15 60 750 Influence Decreases 12503 | 40 480 233 222 391 . 1299 1524 1529 1197 524 1472 531 877 2184 Entered New Map 5967 | . . 81 . 38 . . 1364 235 1017 344 1284 137 75 1392 Time Decay 4226 | 40 480 152 152 333 . 669 150 634 180 170 188 314 502 262 Lost Part 670 | . . . . . . 110 10 110 . . . . 140 300 Lost Ally 890 | . . . 70 20 . 70 . 400 . 10 . 80 160 80 Purge Threat 750 | . . . . . . 450 . 150 . . . . . 150 Squads Dispatched 110 | . 3 1 . . . 23 . 32 . . . 3 26 22 Investigation 35 | . 2 1 . . . 11 . 10 . . . 2 7 2 Extermination 16 | . . . . . . 6 . 6 . . . . 3 1 Reinforcement 24 | . 1 . . . . 4 . 10 . . . 1 6 2 Assault 35 | . . . . . . 2 . 6 . . . . 10 17 Garrison . | . . . . . . . . . . . . . . . Intercept . | . . . . . . . . . . . . . . . Searches Triggered . | . . . . . . . . . . . . . . . Construction Impeded 12 | . . . . . . 2 . 4 . . . 1 5 . Haulers Reinforced 4 | . . . . . . 1 . 2 . . . . 1 . Active Scanning Responses . | . . . . . . . . . . . . . . . Cargo Convoy Interrupts 1 | . . . . . . . . 1 . . . . . . Stealth | -11 -10 -10 -10 -7 -7 -5 -5 -5 -5 -5 -5 -4 -4 -4 --------- Run | Yrd Mat Min Sub Rec Scr Fac Was Fac Upp Upp War Pro Fac Arm Distress Signals 22 | . 1 . . . . 8 . 2 . . . 1 4 6 Communications Jammed . | . . . . . . . . . . . . . . . Distress Signals . | . . . . . . . . . . . . . . . Times Spotted 614 | . 21 3 54 2 . 121 7 95 15 . 37 30 71 158 Peak Tracking Total 36 | . 3 3 4 1 . 16 4 10 13 . 12 7 9 36 Tactical Retreats 65 | . 1 . 1 . . 18 1 14 5 . 3 3 3 16 Traps | -11 -10 -10 -10 -7 -7 -5 -5 -5 -5 -5 -5 -4 -4 -4 ------- Run | Yrd Mat Min Sub Rec Scr Fac Was Fac Upp Upp War Pro Fac Arm Traps Triggered 16 | . 3 . . . . 3 . 2 . 1 . . 5 2 Indirectly 4 | . . . . . . 1 . . . . . . 3 . Trap Hack Attempts . | . . . . . . . . . . . . . . . Triggered . | . . . . . . . . . . . . . . . Disarmed . | . . . . . . . . . . . . . . . Reprogrammed . | . . . . . . . . . . . . . . . Reused 3 | . . . . . . 3 . . . . . . . . Traps Extracted . | . . . . . . . . . . . . . . . Installed 3 | . . . . . . 3 . . . . . . . . Triggered 3 | . . . . . . 3 . . . . . . . . Most Traps Carried 2 | . . . 1 . 2 2 . . . . . . . . Machines | -11 -10 -10 -10 -7 -7 -5 -5 -5 -5 -5 -5 -4 -4 -4 ---------- Run | Yrd Mat Min Sub Rec Scr Fac Was Fac Upp Upp War Pro Fac Arm Machines Disabled 103 | . 3 1 4 1 . 15 . 16 . . 1 . 52 10 Max in Single Turn 6 | . 1 1 3 1 . 2 . 3 . . 1 . 6 2 Garrison Access 4 | . . . . . . 2 . 2 . . . . . . Energy Cycler 1 | . . . . . . . . . . . . . . 1 Machines Repaired . | . . . . . . . . . . . . . . . Machines Dismantled . | . . . . . . . . . . . . . . . Machines Sabotaged . | . . . . . . . . . . . . . . . Overloaded Fab Kills . | . . . . . . . . . . . . . . . Hacking | -11 -10 -10 -10 -7 -7 -5 -5 -5 -5 -5 -5 -4 -4 -4 --------- Run | Yrd Mat Min Sub Rec Scr Fac Was Fac Upp Upp War Pro Fac Arm Machines Accessed 99 | . 10 1 1 10 6 27 . 17 . 1 6 3 11 6 Terminals 32 | . 7 . . 6 . 10 . 5 . . . 1 1 2 Fabricators 10 | . . . . . . 4 . 1 . . . 1 2 2 Repair Stations 10 | . 1 . . . . 4 . 2 . . . . 2 1 Recycling Units 21 | . 2 . . 4 . 3 . 6 . . . 1 4 1 Scanalyzers 7 | . . . . . . 4 . 1 . . . . 2 . Garrison Access 4 | . . . . . . 2 . 2 . . . . . . Total Hacks 350 | . 35 1 9 33 53 96 . 49 . 1 18 6 31 18 Successful 251 | . 23 1 9 18 53 66 . 23 . 1 18 5 22 12 Failed 97 | . 11 . . 15 . 29 . 26 . . . 1 9 6 Catastrophic 10 | . . . . 3 . . . 5 . . . . 1 1 Database Lockouts 2 | . 1 . . . . 1 . . . . . . . . Manual 165 | . 23 . . 22 . 57 . 28 . . . 2 18 15 Terminals 125 | . 25 . . 23 . 39 . 21 . . . 1 7 9 Fabricators 28 | . . . . . . 11 . 2 . . . 2 6 7 Repair Stations 34 | . 6 . . . . 15 . 7 . . . . 5 1 Recycling Units 47 | . 4 . . 10 . 9 . 12 . . . 3 8 1 Scanalyzers 28 | . . . . . . 18 . 5 . . . . 5 . Garrison Access 6 | . . . . . . 4 . 2 . . . . . . Terminal Hacks 105 | . 4 1 9 1 53 9 . 3 . 1 18 1 2 3 Record 67 | . . . 8 . 46 . . . . . 13 . . . Part Schematic 1 | . . . . . . 1 . . . . . . . . Robot Analysis 11 | . 2 . . 1 6 . . . . . . . 2 . Prototype ID Bank 8 | . 2 . . . . 2 . . . . 4 . . . Open Door 4 | . . 1 . . . . . . . 1 1 1 . . Branch Access Points 1 | . . . . . . . . 1 . . . . . . Terminal Index 2 | . . . . . . 1 . . . . . . . 1 Unreport Threat 5 | . . . . . . 3 . 1 . . . . . 1 Recall Investigation 1 | . . . . . . . . 1 . . . . . . Recall Extermination 2 | . . . . . . 2 . . . . . . . . Recall Reinforcements 1 | . . . . . . . . . . . . . . 1 Proto ID Catalog 2 | . . . 1 . 1 . . . . . . . . . Fabricator Hacks 7 | . . . . . . 2 . . . . . 2 2 1 Network Status 2 | . . . . . . 1 . . . . . . . 1 Load Schematic 2 | . . . . . . . . . . . . 1 1 . Build 3 | . . . . . . 1 . . . . . 1 1 . Repair Station Hacks 16 | . 6 . . . . 5 . 1 . . . . 4 . Scan Component 8 | . 3 . . . . 2 . 1 . . . . 2 . Repair 7 | . 3 . . . . 2 . . . . . . 2 . Refit 1 | . . . . . . 1 . . . . . . . . Recycling Unit Hacks 6 | . 1 . . 2 . 2 . . . . . 1 . . Process 1 | . . . . . . 1 . . . . . . . . Retrieve Components 5 | . 1 . . 2 . 1 . . . . . 1 . . Scanalyzer 17 | . . . . . . 11 . 4 . . . . 2 . Insert Component 3 | . . . . . . 3 . . . . . . . . Analyze 5 | . . . . . . 5 . . . . . . . . Retrieve Study 9 | . . . . . . 3 . 4 . . . . 2 . Garrison Access Hacks 4 | . . . . . . 2 . 2 . . . . . . Seal Access 4 | . . . . . . 2 . 2 . . . . . . Unauthorized Hacks 96 | . 12 . . 15 . 35 . 13 . . . 1 12 8 Terminals 44 | . 10 . . 9 . 18 . 3 . . . . 2 2 Track 4 | . 1 . . . . 3 . . . . . . . . Assimilate 2 | . . . . . . 1 . . . . . . . 1 Botnet 17 | . 3 . . 4 . 6 . 2 . . . . 1 1 Operators 2 | . . . . . . 2 . . . . . . . . Skim 19 | . 6 . . 5 . 6 . 1 . . . . 1 . Fabricators 15 | . . . . . . 8 . 1 . . . . 2 4 Report 2 | . . . . . . 1 . . . . . . . 1 Prioritize 2 | . . . . . . 2 . . . . . . . . Liberate 8 | . . . . . . 4 . 1 . . . . 1 2 Haulers 3 | . . . . . . 1 . . . . . . 1 1 Repair Stations 6 | . . . . . . 3 . 1 . . . . 1 1 Mechanics 1 | . . . . . . 1 . . . . . . . . Patch 5 | . . . . . . 2 . 1 . . . . 1 1 Recycling Units 28 | . 2 . . 6 . 3 . 8 . . . 1 7 1 Reject 5 | . . . . 1 . 2 . 1 . . . . 1 . Recyclers 3 | . . . . 1 . . . . . . . 1 1 . Mask 5 | . . . . 2 . 1 . 1 . . . . 1 . Tunnel 4 | . 2 . . 2 . . . . . . . . . . Fedlink 9 | . . . . . . . . 6 . . . . 3 . Scrapoids 2 | . . . . . . . . . . . . . 1 1 Scanalyzers 3 | . . . . . . 3 . . . . . . . . Extract 3 | . . . . . . 3 . . . . . . . . Garrison Access . | . . . . . . . . . . . . . . . Data Cores Recovered 3 | . 1 . . . . . . 1 . . . . 1 . Used . | . . . . . . . . . . . . . . . Hacking Detections 63 | . 9 . . 7 . 24 . 12 . . . 2 6 3 Full Trace Events 11 | . 1 . . 1 . 4 . 2 . . . 1 2 . Feedback Events 3 | . . . . 1 . . . 1 . . . . 1 . Corruption 2 | . . . . 1 . . . . . . . . 1 . Hackware Fried 1 | . . . . . . . . 1 . . . . . . Feedback Blocked . | . . . . . . . . . . . . . . . Robot Schematics Acquired . | . . . . . . . . . . . . . . . Robots Built . | . . . . . . . . . . . . . . . Authchips . | . . . . . . . . . . . . . . . Time . | . . . . . . . . . . . . . . . Total Robot Build Rating . | . . . . . . . . . . . . . . . Part Schematics Acquired 21 | . . . . . . 21 . . . . . . . . Parts Built 3 | . . . . . . 1 . . . . . 2 . . Authchips . | . . . . . . . . . . . . . . . Time 234 | . . . . . . 53 . . . . . 53 128 . Total Part Build Rating 18 | . . . . . . 6 . . . . . 12 . . Part Studies Acquired 9 | . . . . . . 3 . 4 . . . . 2 . Parts Repaired 6 | . 3 . . . . 2 . . . . . . 1 . Time 257 | . 84 . . . . 61 . . . . . . 112 . Parts Recycled . | . . . . . . . . . . . . . . . Recycled Matter 28 | . . . . . . 28 . . . . . . . . Retrieved Matter . | . . . . . . . . . . . . . . . Retrieved Components 25 | . 8 . . 4 . 3 . . . . . 10 . . Parts Scanalyzed 2 | . . . . . . 2 . . . . . . . . Part Schematics Acquired 2 | . . . . . . 2 . . . . . . . . Parts Damaged 2 | . . . . . . 2 . . . . . . . . Bothacking | -11 -10 -10 -10 -7 -7 -5 -5 -5 -5 -5 -5 -4 -4 -4 ------------ Run | Yrd Mat Min Sub Rec Scr Fac Was Fac Upp Upp War Pro Fac Arm Used RIF Installer . | . . . . . . . . . . . . . . . Robots Hacked . | . . . . . . . . . . . . . . . Non-combat . | . . . . . . . . . . . . . . . Combat . | . . . . . . . . . . . . . . . Robot Hacks Applied . | . . . . . . . . . . . . . . . Relay Couplers Released . | . . . . . . . . . . . . . . . Fabnet Peak Effective % . | . . . . . . . . . . . . . . . Robots Rewired 16 | . . . . . . 3 . . . . . 13 . . Allies Hacked 2 | . . . . . . . . 1 . . . . . 1 Hacks Repelled . | . . . . . . . . . . . . . . . Allies | -11 -10 -10 -10 -7 -7 -5 -5 -5 -5 -5 -5 -4 -4 -4 -------- Run | Yrd Mat Min Sub Rec Scr Fac Was Fac Upp Upp War Pro Fac Arm Total Allies 92 | . . 2 34 . . 4 19 4 . . . 19 5 5 Largest Group 19 | . . 2 14 7 5 6 19 19 . . . 8 5 5 Highest-Rated Group 684 | . . 49 264 131 93 178 684 683 . . . 390 247 235 Highest-Rated Ally 81 | . . 31 31 19 19 41 50 50 . . . 81 56 47 Initial UFD Resources 74 | . . . . . . 37 37 37 59 59 59 61 61 74 Total Orders 21 | . . . . . . 5 . 3 . 1 1 9 2 . STAY 5 | . . . . . . 2 . . . . . 2 1 . FOLLOW 4 | . . . . . . 1 . . . . . 2 1 . EXPLORE 8 | . . . . . . . . 2 . 1 1 4 . . RETURN 4 | . . . . . . 2 . 1 . . . 1 . . Ally Attacks 631 | . . . 137 22 . 65 27 150 . . . 47 105 78 Total Damage 17298 | . . . 2989 368 . 1840 444 4151 . . . 1584 4034 1888 Kills 116 | . . . 21 4 . 21 1 29 . . . 8 25 7 Allies Corrupted 5 | . . . . . . 1 . 3 . . . . . 1 Allies Melted 1 | . . . . . . . . . . . . . . 1 Intel | -11 -10 -10 -10 -7 -7 -5 -5 -5 -5 -5 -5 -4 -4 -4 ------- Run | Yrd Mat Min Sub Rec Scr Fac Was Fac Upp Upp War Pro Fac Arm Active Infowar (turns) 4372 | 60 445 . . . . 2598 . 24 308 192 59 683 1 2 Optics 2385 | . . . . . . 2385 . . . . . . . . Sensors 1261 | . . . . . . . . 24 308 192 54 683 . . Terrain 505 | 60 445 . . . . . . . . . . . . . Decoding 2588 | . . . . . . 2588 . . . . . . . . Cloaking 7 | . . . . . . . . . . . 5 . . 2 Jamming 1 | . . . . . . . . . . . . . 1 . Robot Analysis Total 11 | . 2 . . 1 6 . . . . . . . 2 . Derelict Logs Recovered 14 | . . 2 2 . 5 . . . 1 3 . 1 . . Drone Launches 21 | . . . . . . 2 . 12 . 2 1 4 . . Drone Recoveries 12 | . . . . . . 2 . 6 . . 1 3 . . Decoded 0b10 Intel 128 | . . . . . . 128 . . . . . . . . Items 128 | . . . . . . 128 . . . . . . . . Exploration | -11 -10 -10 -10 -7 -7 -5 -5 -5 -5 -5 -5 -4 -4 -4 ------------- Run | Yrd Mat Min Sub Rec Scr Fac Was Fac Upp Upp War Pro Fac Arm Turns Passed 26095 | 155 2122 1247 4834 2413 2947 2806 303 2266 378 351 1068 2642 1590 973 Spaces Moved 20470 | 66 862 505 1863 1089 2007 4399 345 2584 631 572 996 2086 1612 853 Core 276 | 6 . . . . 270 . . . . . . . . . Treads 5605 | 60 862 505 1863 1089 1226 . . . . . . . . . Legs 45 | . . . . . . . . . . . . . . 45 Wheels 511 | . . . . . 511 . . . . . . . . . Hover 8461 | . . . . . . . 8 1748 631 572 996 2086 1612 808 Flight 5572 | . . . . . . 4399 337 836 . . . . . . Fastest Speed 33 | 50 160 240 240 160 50 33 45 34 48 58 56 65 56 49 Average Speed 101 | 150 205 240 243 215 142 43 47 53 57 58 65 78 64 59 Slowest Speed 250 | 160 240 240 250 250 250 110 160 131 58 58 122 138 139 217 Overloaded Moves 50 | . . . . . . . . 31 19 . . . . . Propulsion Burnouts . | . . . . . . . . . . . . . . . Robots Hopped 42 | . . . . . . 37 2 3 . . . . . . Potential Cave-ins 4 | . . . . . . . . 4 . . . . . . Cave-ins Triggered . | . . . . . . . . . . . . . . . Exploration Rate (%) 73 | 3 99 83 90 99 87 66 96 55 86 83 95 86 34 43 Regions Visited 14 Branch Regions 9 Pre-discovered Areas 24 | . 2 2 1 6 7 3 . 1 . . 1 1 . . Known Exits Taken 6 | . . . . . . . . 1 1 1 1 1 1 . Unknown Exits Taken 6 | 1 1 1 1 1 1 . . . . . . . . . Scrap Searched 31 | . . 2 14 . 11 . . . 2 1 . 1 . . Spaces Dug 49 | . . . . . . 17 . 12 . 1 1 6 8 4 Terrain Destroyed 1703 | . 2 6 607 2 . 334 159 208 3 1 18 57 239 67 Melee 1 | . . . . . . . . . . . . . . 1 Projectile 310 | . 2 1 . 2 . 63 . 69 3 1 18 48 80 23 AOE 1387 | . . 5 607 . . 271 159 139 . . . 9 158 39 Terrain Rammed . | . . . . . . . . . . . . . . . Walls Destroyed . | . . . . . . . . . . . . . . . Machines Disabled . | . . . . . . . . . . . . . . . Actions | -11 -10 -10 -10 -7 -7 -5 -5 -5 -5 -5 -5 -4 -4 -4 --------- Run | Yrd Mat Min Sub Rec Scr Fac Was Fac Upp Upp War Pro Fac Arm Total 24148 | 90 1078 525 2039 1128 2107 5018 469 3154 637 588 1308 2996 1917 1094 Wait 1512 | . 94 . . . 12 208 78 180 . 7 176 675 67 15 Move 20379 | 65 861 504 1862 1088 2006 4329 341 2577 630 571 995 2086 1611 853 Hop 37 | . . . . . . 33 1 3 . . . . . . Pick Up 235 | 2 25 7 20 14 35 26 6 36 . 2 13 12 21 16 Fast Attach 185 | 6 7 . 1 2 10 38 4 55 . 1 15 1 20 25 Attach 119 | 1 1 . . 1 2 31 9 20 . . 8 7 17 22 Detach 94 | . 2 . 1 4 5 38 6 19 . . 5 1 6 7 Swap 232 | . 4 2 23 3 12 38 . 48 4 4 21 23 33 17 Drop 273 | . 13 3 29 2 25 53 4 60 . 2 28 10 25 19 Fire 897 | 16 71 9 103 14 . 208 20 148 2 1 45 51 104 105 Melee 5 | . . . . . . . . . . . 1 . . 4 Ram . | . . . . . . . . . . . . . . . Kick 6 | . . . . . . . . . . . . . . 6 Crush . | . . . . . . . . . . . . . . . Escape Stasis 20 | . . . . . . . . 4 . . . . 13 3 Rewire 146 | . . . . . . 11 . 1 1 . 1 130 . 2 Trap 3 | . . . . . . 3 . . . . . . . . Miscellaneous 5 | . . . . . . 2 . 3 . . . . . . Route ------- -11/Scrapyard -10/Materials (discovered 4 exits: [*Mat x3] / *Min) -10/Mines (discovered 3 exits: [*Mat x2] / *Sub) -10/Subcaves (discovered 4 exits: *Mat x2 / *Rec / *Scr) -7/Recycling (discovered 2 exits: *Fac / *Scr) -7/Scraptown (discovered 2 exits: *Fac x2) -5/Factory (discovered 6 exits: *Fac x3 / Upp / *Ext x2) -5/Waste -5/Factory (discovered 6 exits: *Fac x2 / *Upp x2 / Ext x2) -5/Upper Caves -5/Upper Caves (discovered 2 exits: *Fac / *War) -5/Warlord -4/Proximity Caves -4/Factory (discovered 4 exits: Res x3 / *Arm) -4/Armory (discovered 1 exit: *Res) History --------- Turn | Location | Event 12 | -11/Scrapyard | Discovered new exit (range 16) 156 | -11/Scrapyard | Entered Materials 209 | -10/Materials | Discovered new exit (range 5) 309 | -10/Materials | Build established: Mutant 466 | -10/Materials | Central database locked down 545 | -10/Materials | Discovered new exit (range 16) 915 | -10/Materials | Discovered new exit (range 9) 1277 | -10/Materials | Discovered new exit (range 13) 1716 | -10/Materials | Repaired Imp. Light Cannon 1744 | -10/Materials | Repaired Lgt. Treads 1771 | -10/Materials | Repaired Lgt. Treads 2278 | -10/Materials | Entered Mines 2311 | -10/Mines | Assembled infested the area 2346 | -10/Mines | Discovered new exit (range 15) 2444 | -10/Mines | Discovered new exit (range 12) 2598 | -10/Mines | Discovered new exit (range 10) 2852 | -10/Mines | Met a Derelict shopkeep closing up shop 3302 | -10/Mines | Received a Rocket Launcher from a helpful Derelict 3525 | -10/Mines | Entered Subcaves 3525 | -10/Subcaves | Accompanied by 2 allies 3526 | -10/Subcaves | Approached by a straggling Scientist 3530 | -10/Subcaves | Led the pair of lost Derelicts to an unsafe place 3657 | -10/Subcaves | Identified exit to Materials 3807 | -10/Subcaves | Scientist uncovered a shortcut to Scraptown 4022 | -10/Subcaves | Core integrity fell below 50% 4043 | -10/Subcaves | Ambushed by Subdweller buried in earth 4136 | -10/Subcaves | Learned Materials emergency access door positions 4822 | -10/Subcaves | Visited triangular shrine 4837 | -10/Subcaves | Found Prototype Device 4837 | -10/Subcaves | Identified V3-11A's Pendant 4842 | -10/Subcaves | Befriended Subdweller 4949 | -10/Subcaves | Ambushed by Subdweller buried in earth 4949 | -10/Subcaves | Ambushed by Subdweller buried in earth 4952 | -10/Subcaves | Befriended Subdweller 4952 | -10/Subcaves | Befriended Subdweller 4982 | -10/Subcaves | Befriended Subdweller 4982 | -10/Subcaves | Befriended Subdweller 4982 | -10/Subcaves | Befriended Subdweller 4987 | -10/Subcaves | Befriended Subdweller 4987 | -10/Subcaves | Befriended Subdweller 5122 | -10/Subcaves | Befriended Subdweller 5122 | -10/Subcaves | Befriended Subdweller 5247 | -10/Subcaves | Befriended Subdweller 5322 | -10/Subcaves | Befriended Subdweller 5422 | -10/Subcaves | Befriended Subdweller 5724 | -10/Subcaves | Visited 4L-MR0's lab 5755 | -10/Subcaves | Found Flightbrick 6342 | -10/Subcaves | Befriended Subdweller 6501 | -10/Subcaves | Learned location of Zion (-7) 6501 | -10/Subcaves | Met a Zionite searching for "candidates" 6709 | -10/Subcaves | Disturbed a concealed Subdweller 6712 | -10/Subcaves | Befriended Subdweller 6752 | -10/Subcaves | Befriended Subdweller 6757 | -10/Subcaves | Befriended Subdweller 6827 | -10/Subcaves | Discovered exit to Materials (range 14) 6847 | -10/Subcaves | Befriended Subdweller 6852 | -10/Subcaves | Befriended Subdweller 7018 | -10/Subcaves | Ambushed by Subdweller buried in earth 7051 | -10/Subcaves | Ambushed by Subdweller buried in earth 7062 | -10/Subcaves | Murdered 6 allies 7068 | -10/Subcaves | Ambushed by Subdweller buried in earth 7072 | -10/Subcaves | Befriended Subdweller 7787 | -10/Subcaves | Befriended Subdweller 7819 | -10/Subcaves | Discovered new exit (range 15) 7841 | -10/Subcaves | Lost 5 allies 7965 | -10/Subcaves | Ambushed by Subdweller buried in earth 7967 | -10/Subcaves | Befriended Subdweller 7989 | -10/Subcaves | Ambushed by Subdweller buried in earth 7990 | -10/Subcaves | Core integrity fell below 20% 7992 | -10/Subcaves | Befriended Subdweller 7992 | -10/Subcaves | Befriended Subdweller 8013 | -10/Subcaves | Ambushed by Subdweller buried in earth 8017 | -10/Subcaves | Befriended Subdweller 8017 | -10/Subcaves | Befriended Subdweller 8032 | -10/Subcaves | Ambushed by Subdweller buried in earth 8032 | -10/Subcaves | Ambushed by Subdweller buried in earth 8037 | -10/Subcaves | Befriended Subdweller 8037 | -10/Subcaves | Befriended Subdweller 8037 | -10/Subcaves | Befriended Subdweller 8073 | -10/Subcaves | Ambushed by Subdweller buried in earth 8073 | -10/Subcaves | Ambushed by Subdweller buried in earth 8076 | -10/Subcaves | Ambushed by Subdweller buried in earth 8076 | -10/Subcaves | Ambushed by Subdweller buried in earth 8077 | -10/Subcaves | Befriended Subdweller 8117 | -10/Subcaves | Ambushed by Subdweller buried in earth 8192 | -10/Subcaves | Ambushed by Subdweller buried in earth 8197 | -10/Subcaves | Befriended Subdweller 8228 | -10/Subcaves | Ambushed by Subdweller buried in earth 8232 | -10/Subcaves | Befriended Subdweller 8253 | -10/Subcaves | Ambushed by Subdweller buried in earth 8261 | -10/Subcaves | Ambushed by Subdweller buried in earth 8262 | -10/Subcaves | Befriended Subdweller 8263 | -10/Subcaves | Murdered 6 allies 8297 | -10/Subcaves | Befriended Subdweller 8359 | -10/Subcaves | Entered Recycling 8359 | -7/Recycling | Accompanied by 7 allies 8444 | -7/Recycling | Scanned before Scraplab entrance 9151 | -7/Recycling | Discovered new exit (range 8) 10124 | -7/Recycling | Learned location of Warlord (-5) 10173 | -7/Recycling | Build established: Hacker-Mutant 10203 | -7/Recycling | Learned Extension terminal intel 10272 | -7/Recycling | Learned location of 1 exit from Hub_04(d) 10333 | -7/Recycling | Learned location of Archives (-5) 10455 | -7/Recycling | Learned 2 Proximity Caves zone layouts 10495 | -7/Recycling | Learned Hub_04(d) trap positions 10682 | -7/Recycling | Learned location of 2 exits from Upper Caves 10699 | -7/Recycling | Build established: Mutant 10750 | -7/Recycling | Entered Scraplab 10763 | -7/Recycling | Discovered new exit (range 3) 10772 | -7/Recycling | Entered Scraptown 10772 | -7/Scraptown | Accompanied by 5 allies 10772 | -7/Scraptown | System corruption cleaned by C-Scrubber 10970 | -7/Scraptown | Scanned Subdweller tech in exchange for log data 10978 | -7/Scraptown | Learned location of Quarantine (-3) 10982 | -7/Scraptown | Learned Research terminal intel 10985 | -7/Scraptown | Learned Research emergency access door positions 11119 | -7/Scraptown | Visited UFD Registry 11119 | -7/Scraptown | Registered with UFD as "Wirechaser" 11302 | -7/Scraptown | Delivered Scrap Shield to a Scientist 11388 | -7/Scraptown | Visited Science Guys 11534 | -7/Scraptown | Visited Supply Room 11647 | -7/Scraptown | Discovered new exit (range 13) 11709 | -7/Scraptown | Guru changed UFD alias to "Chainranger" 12187 | -7/Scraptown | Visited IN-MT5's Study 12218 | -7/Scraptown | Visited SPCMW 12242 | -7/Scraptown | Visited Assassins FH 12272 | -7/Scraptown | Visited The Evicted 12286 | -7/Scraptown | Visited Shadow of the Wyrm 12348 | -7/Scraptown | Visited DA-N13 Charitable Foundation 12352 | -7/Scraptown | Found DCF Scrap (26 items) 12421 | -7/Scraptown | Visited Supply Room 12506 | -7/Scraptown | Visited Curators Association 12532 | -7/Scraptown | Visited Observation Area 12557 | -7/Scraptown | Visited Analyses Database 12589 | -7/Scraptown | Visited Cartography Club 12602 | -7/Scraptown | Visited Junk Repository 12747 | -7/Scraptown | Learned location of Extension (-5) 12747 | -7/Scraptown | Learned location of Hub_04(d) (-5) 12747 | -7/Scraptown | Learned location of Testing (-2) 12747 | -7/Scraptown | Learned 12 Materials zone layouts 12747 | -7/Scraptown | Learned 8 Access zone layouts 12747 | -7/Scraptown | Learned 12 Research zone layouts 12747 | -7/Scraptown | Learned 4 Access zone layouts 12747 | -7/Scraptown | Learned 4 Mines zone layouts 12747 | -7/Scraptown | Learned 20 Lower Caves zone layouts 12747 | -7/Scraptown | Learned 4 Armory zone layouts 12747 | -7/Scraptown | Learned location of 1 exit from Factory 12747 | -7/Scraptown | Learned location of 3 exits from Upper Caves 12747 | -7/Scraptown | Learned location of 2 exits from Proximity Caves 13026 | -7/Scraptown | Visited Bundlers 13189 | -7/Scraptown | Delivered V3-11A's Pendant to T0-NE2 in exchange for information 13478 | -7/Scraptown | Visited Scrap Suit Storage 13527 | -7/Scraptown | Visited Infowarlord's Domain 13638 | -7/Scraptown | Met Optimus 13638 | -7/Scraptown | Accepted into 0bPrime 13704 | -7/Scraptown | Discovered new exit (range 5) 13719 | -7/Scraptown | Entered Factory 13719 | -5/Factory | Accompanied by 5 allies 13719 | -5/Factory | Evolved 10 slots: Power x1, Propulsion x4, Utility x3, Weapon x2 13720 | -5/Factory | Identified exit to Factory 13720 | -5/Factory | Attached Flightbrick, gained temporary slots: Utility x3 14014 | -5/Factory | Build established: Hacker-Mutant 14345 | -5/Factory | Discovered exit to Factory (range 12) 14591 | -5/Factory | Destroyed 7 combat bots 14742 | -5/Factory | Discovered new exit (range 11) 14805 | -5/Factory | Repaired Hvy. Rocket Launcher? 15037 | -5/Factory | Fabricated Adv. Hacking Suite (x1) 15179 | -5/Factory | Central database locked down 15299 | -5/Factory | Learned location of 2 exits from Proximity Caves 15364 | -5/Factory | Learned location of Proximity Caves (-5) 15441 | -5/Factory | Discovered exit to Factory (range 5) 15458 | -5/Factory | Learned Research scanalyzer intel 15488 | -5/Factory | Learned 4 Extension zone layouts 15491 | -5/Factory | Spotted B-75 Beast 15492 | -5/Factory | Watched by a mysterious "MATRIX" hacker 15509 | -5/Factory | Identified exit to Upper Caves 15509 | -5/Factory | Identified exit to Extension 15517 | -5/Factory | Noticed UFD Elites at a Recycling Unit 15582 | -5/Factory | Lost 3 allies 15587 | -5/Factory | Learned location of 1 exit from Extension 15708 | -5/Factory | Learned 4 Proximity Caves zone layouts 16119 | -5/Factory | First assault squad dispatched 16250 | -5/Factory | Repaired Broken Enh. Gauss Cannon+ 16486 | -5/Factory | System corruption reached 10% 16525 | -5/Factory | Manually triggered Chute Trap 16525 | -5/Factory | Sucked down chute 16525 | -5/Factory | Entered Waste 16535 | -5/Waste | Spotted C-40 Crusher 16537 | -5/Waste | Lost 8 parts (7n1u) 16540 | -5/Waste | EMP discharged 16543 | -5/Waste | Spotted C-40 Crusher 16569 | -5/Waste | Destroyed C-40 Crusher 16585 | -5/Waste | Spotted C-40 Crusher 16586 | -5/Waste | Spotted C-40 Crusher 16588 | -5/Waste | Spotted C-40 Crusher 16589 | -5/Waste | Spotted C-40 Crusher 16627 | -5/Waste | Destroyed C-40 Crusher 16636 | -5/Waste | Crushed by Compactor (1 part destroyed, 1 dropped) 16637 | -5/Waste | Core integrity fell below 50% 16640 | -5/Waste | EMP discharged 16640 | -5/Waste | System corruption reached 30% 16650 | -5/Waste | Destroyed C-40 Crusher 16658 | -5/Waste | Destroyed C-40 Crusher 16658 | -5/Waste | Destroyed C-40 Crusher 16678 | -5/Waste | Met Warlord forces unprepared to attack 16722 | -5/Waste | Allies destroyed C-40 Crusher 16734 | -5/Waste | Discovered new exit (range 10) 16740 | -5/Waste | EMP discharged 16828 | -5/Waste | Entered Factory 16828 | -5/Factory | Accompanied by 19 allies 17064 | -5/Factory | Lost 5 allies 17131 | -5/Factory | Build established: Hacker-Gunner 17428 | -5/Factory | First assault squad dispatched 17652 | -5/Factory | Lost 4 allies 17732 | -5/Factory | Lost 3 allies 17744 | -5/Factory | Discovered exit to Factory (range 9) 17990 | -5/Factory | Loaded intel: 8 recycling unit locations 18138 | -5/Factory | Learned location of Protoforge (-3) 18446 | -5/Factory | Adv. Hacking Suite fried by hacking feedback 18478 | -5/Factory | Discovered exit to Factory (range 57) 18641 | -5/Factory | Core integrity fell below 20% 18737 | -5/Factory | Build established: Gunner 19061 | -5/Factory | High security lockdown imminent 19088 | -5/Factory | Cargo convoy interrupted 19094 | -5/Factory | Entered Upper Caves 19095 | -5/Upper Caves | Identified exit to Upper Caves 19096 | -5/Upper Caves | UFD Scientist delivered a prototype 19096 | -5/Upper Caves | Attracted the attention of an 0b10 outpost 19111 | -5/Upper Caves | Spotted B-75 Beast 19162 | -5/Upper Caves | Learned Factory security intel 19167 | -5/Upper Caves | Encountered a Warlord checkpoint 19185 | -5/Upper Caves | Build established: Scientist-Gunner 19343 | -5/Upper Caves | Attracted the attention of an 0b10 checkpoint 19472 | -5/Upper Caves | Entered another Upper Caves area 19473 | -5/Upper Caves | Identified exit to Warlord 19478 | -5/Upper Caves | Learned Factory interactive machine intel 19548 | -5/Upper Caves | Entered a destroyed Warlord outpost 19558 | -5/Upper Caves | Learned Factory terminal intel 19660 | -5/Upper Caves | Prototype Device suddenly appears! 19662 | -5/Upper Caves | Found Prototype Device 19662 | -5/Upper Caves | Identified Amulet of Y3-NDR 19751 | -5/Upper Caves | Found Alien Artifact 19751 | -5/Upper Caves | Identified Core Expander 19751 | -5/Upper Caves | Installed Core Expander, added new Power slot 19823 | -5/Upper Caves | Entered Warlord 19824 | -5/Warlord | Identified exit to Proximity Caves 19846 | -5/Warlord | System corruption cleaned by Quarantine Array 20013 | -5/Warlord | Learned Testing security intel 20013 | -5/Warlord | Learned Factory scanalyzer intel 20013 | -5/Warlord | Learned Research fabricator intel 20013 | -5/Warlord | Learned Research scanalyzer intel 20013 | -5/Warlord | Learned Quarantine emergency access door positions 20013 | -5/Warlord | Learned 4 Access zone layouts 20013 | -5/Warlord | Learned 4 Testing zone layouts 20013 | -5/Warlord | Learned 4 Quarantine zone layouts 20100 | -5/Warlord | Visited the Vortex Lab 20104 | -5/Warlord | Warlord's base attacked by MAIN.C 20105 | -5/Warlord | Found Prototype Piercing Weapon 20111 | -5/Warlord | Found Prototype Piercing Weapon 20127 | -5/Warlord | Identified Vortex Lance (x2) 20143 | -5/Warlord | Found Prototype Device 20143 | -5/Warlord | Identified Exp. Cloaking Device 20148 | -5/Warlord | Found Prototype Device 20148 | -5/Warlord | Identified System Purifier 20162 | -5/Warlord | Found Prototype Hackware 20168 | -5/Warlord | Found Prototype Reactor 20183 | -5/Warlord | Identified Vortex Chain Reactor 20245 | -5/Warlord | Rebuked by Warlord 20410 | -5/Warlord | Destroyed 7 combat bots 20454 | -5/Warlord | Warlord forces counterattacked 20493 | -5/Warlord | Spotted Striker 20502 | -5/Warlord | Spotted Striker 20546 | -5/Warlord | Spotted Executioner 20581 | -5/Warlord | Lost 24 allies 20620 | -5/Warlord | Spotted Executioner 20678 | -5/Warlord | Lost 11 allies 20760 | -5/Warlord | Spotted Striker 20779 | -5/Warlord | Warlord base infiltrated, sounded retreat 20842 | -5/Warlord | Lost 6 allies 20891 | -5/Warlord | Entered Proximity Caves 21735 | -4/Proximity Caves | Joined by bewildered Wizard 21736 | -4/Proximity Caves | Joined by bewildered Wizard 21737 | -4/Proximity Caves | Joined by bewildered Wizard 21823 | -4/Proximity Caves | Lost 3 allies 21890 | -4/Proximity Caves | Joined by bewildered Wizard 21890 | -4/Proximity Caves | Joined by bewildered Wizard 21909 | -4/Proximity Caves | Joined by bewildered Wizard 21959 | -4/Proximity Caves | Attracted the attention of an 0b10 outpost 23013 | -4/Proximity Caves | Snuck into a huge 0b10 base via the rear entrance 23079 | -4/Proximity Caves | Derelicts attacked a huge 0b10 base 23186 | -4/Proximity Caves | Lost 9 allies 23319 | -4/Proximity Caves | Identified System Mapper 23395 | -4/Proximity Caves | Fabricated Adv. Recoil Stabilizer (x2) 23517 | -4/Proximity Caves | Build established: Commander-Gunner 23533 | -4/Proximity Caves | Entered Factory 23533 | -4/Factory | Accompanied by 5 allies 23533 | -4/Factory | Evolved 2 slots: Utility x2 23534 | -4/Factory | Identified exit to Research 23534 | -4/Factory | Identified exit to Armory 23536 | -4/Factory | Loaded intel: 54 interactive machine locations 23537 | -4/Factory | Loaded intel: 26 terminal locations 23538 | -4/Factory | Loaded intel: 4 scanalyzer locations 23940 | -4/Factory | Spotted B-86 Titan 23979 | -4/Factory | Lost 3 allies 23989 | -4/Factory | Destroyed B-86 Titan 24048 | -4/Factory | Build established: Hacker-Gunner 24086 | -4/Factory | Loaded intel: 8 recycling unit locations 24783 | -4/Factory | First assault squad dispatched 24844 | -4/Factory | Repaired Cmb. Gravmag System+? 24864 | -4/Factory | Scrapoid reinforcements arrived 24874 | -4/Factory | High security lockdown imminent 24910 | -4/Factory | Build established: Scientist-Gunner 24931 | -4/Factory | Destroyed 7 combat bots 24954 | -4/Factory | High security lockdown engaged 25071 | -4/Factory | Lost 7 parts (2p1n1u3w) 25123 | -4/Factory | Entered Armory 25145 | -4/Armory | Allied Derelicts emerged from ambush trap array 25164 | -4/Armory | System corruption reached 10% 25373 | -4/Armory | First assault squad dispatched 25498 | -4/Armory | Discovered exit to Research (range 3) 25566 | -4/Armory | Lost 5 parts (1p2n1u1w) 25687 | -4/Armory | High security lockdown imminent 25735 | -4/Armory | Build established: Scavenger-Gunner 25741 | -4/Armory | Scrapoids reinforcements arrived? 25767 | -4/Armory | High security lockdown engaged 25790 | -4/Armory | Energy Cycler disabled 25819 | -4/Armory | Core integrity fell below 50% 25839 | -4/Armory | Lost 5 allies 25844 | -4/Armory | Destroyed 8 combat bots 25884 | -4/Armory | Found Gamma Bomb Array 25885 | -4/Armory | Found Gamma Bomb Array 25887 | -4/Armory | Found Gamma Bomb Array 26026 | -4/Armory | Destroyed 14 combat bots 26066 | -4/Armory | Core integrity fell below 20% 26072 | -4/Armory | Lost 17 parts (2p9n2u4w) 26096 | -4/Armory | Destroyed by P-70 Sage with Tesla Rifle Last Messages --------------- 26086_ C-45 Heavy ARC bursts open, deploying its payload. 26086_ P-70 Sage unfolds itself. 26086_ E-15 Imp unfolds itself. 26086_ Myomer Leg destroyed. 26086_ Hvy. Antimatter Reactor destroyed. 26087_ Triggered Stasis Trap. 26087_ A bubble of rippling energy engulfs the area. 26087_ Field strength at 78. 26089_ E-15 Imp destroyed. 26091_ Field strength at 44. 26092_ Field strength at 26. 26093_ Field strength at 3. 26093_ Stasis field depleted. 26094_ KDX>J8SE5NX3ZN>NPF%< 26094_ Acquired 10 matter. 26095_ Antigrav System+ blown off. 26095_ Flexi-carbon Leg blown off. 26095_ E-15 Imp destroyed. 26096_ Imp. Gyrokinetic Inverter destroyed. Map ----- +----------------------------------------------------+ | ???????#!/=!*[ #??????????# ##% # ! " | | ???????#*#%!! #??????????### ####!* ##"#=# | | ????"??#=# #????????????# #??#! =* !* | | ????"!*#%#? #?????????#### ##?# ! =/ | | ????"!%/[#??####????????? ### / ! = | | ????"[[#%#######??????? ? "###/###/### | | ????"??#*# #?????"" T## #?? | | ???????#!# #?????"F """ "## #?? | | ???????#%+%/ #????#"" """ ### #?? | | ???????#*#[%= #????#"" """ #?# #?? | | ???????# #[! #????# ? #?# #?? | | ???????# " " ###??# ?? #?# #?? | | ???????# #"%" # #??# #??"T""###?###+####?? | | ???????# ###/###"#### #??""""#?????# #????? | | ???????# ## + g #??###########/####?? | | ???????# ## ]# ###### #?? | | ???????# ## ![=# / #?? | | ???????# ## !%*# # """" "" " #?? | | ???????# ## [] #g[ # """" """" !#?? | | ???????# ## """"=#!! + """" """" #?? | | ???????# ## "]]"/gg=! # """" """" #?? | | ???????# ## " ]"%#p]! / #?? | | ??????## ## "] "!#=g # """" """" #?? | | ??????# # "" "|#]#### # """" """" #?? | | ??????# # !#=#??# # """" """" #?? | | ??????# # ![#@#??# # "??" "?????#?? | | ??????## ## #*#??# # ?? ???????? | | ???????# ## #m#??# ###??###???????? | | ???????# #####+###/#### #??????????????? | | ???????# # # #??????????????? | | ???????# + """ "" # #??????????????? | | ???????# # """ """ / #??????????????? | | ???????# # """ """ # ???????????????? | | ???????# # #???????????????????? | | ???????# ##############???????????????????? | | ???????# #????????????????????????????????? | | ??????? ????????????????????????????????? | | ??????? ????????????????????????????????? | | ??????? ????????????????????????????????? | | ???????###????????????????????????????????? | | ??????????????????????????????????????????? | | ??????????????????????????????????????????? | | ??????????????????????????????????????????? | | ??????????????????????????????????????????? | | ??????????????????????????????????????????? | | ??????????????????????????????????????????? | | ??????????????????????????????????????????? | | ??????????????????????????????????????????? | | ??????????????????????????????????????????? | | ??????????????????????????????????????????? | +----------------------------------------------------+ Best States ------------- Heat Dissipation 74 Coolant Potential 100 Energy Generation 69 Energy Capacity 1115 Matter Stores 600 Matter Capacity 600 Sight Range 22 Robot Scan Range 15 Terrain Scan Range 16 Terrain Scan Density 10 Cloak Strength 4 Armor Coverage 225 Resistance: KI 25 Resistance: EM 15 Core Shielding 20 Propulsion Shielding 15 Weapon Shielding 66 Weapon Cycling 20 Evasion (%) 63 Targeting Accuracy 24 Core Analysis 6 Armor Integrity Analysis 40 Recoil Reduction 6 Offensive Hacking 38 Defensive Hacking 24 Item Schematics ----------------- Cmb. Antigrav System | -5/Factory | Hacked Focal Shield | -5/Factory | Extracted Imp. System Shield | -5/Factory | Extracted Cold Fusion Reactor | -5/Factory | Extracted Point Defense System | -5/Factory | Extracted Plasma Rifle | -5/Factory | Extracted Matter Filter | -5/Factory | Extracted Adv. System Restoration Module | -5/Factory | Extracted Imp. Recalibrator | -5/Factory | Extracted Coil Gun | -5/Factory | Extracted Lgt. Angular Momentum Engine | -5/Factory | Extracted Falx | -5/Factory | Extracted Imp. Melee Analysis Suite | -5/Factory | Extracted Adv. Targeting Computer | -5/Factory | Extracted Imp. Propulsion Shielding | -5/Factory | Extracted Hvy. Shock Bomb Launcher | -5/Factory | Extracted Hpw. Shock Rifle | -5/Factory | Extracted Power Amplifier | -5/Factory | Extracted Hvy. Machine Gun | -5/Factory | Extracted Adv. Recoil Stabilizer | -5/Factory | Scanalyzed Enh. Gauss Cannon | -5/Factory | Scanalyzed Robot Schematics ------------------ None Fabricated ------------ Adv. Hacking Suite | x1 | -5/Factory | Preloaded Adv. Recoil Stabilizer | x2 | -4/Proximity Caves Repaired ---------- Imp. Light Cannon | 54% | -10/Materials Lgt. Treads | 63% | -10/Materials Lgt. Treads | 65% | -10/Materials Hvy. Rocket Launcher | 15% | -5/Factory Enh. Gauss Cannon | 99% | -5/Factory | Broken Cmb. Gravmag System | 17% | -4/Factory Studied --------- Nuclear Pulse Array | -5/Factory | Hacked Enh. Gauss Cannon | -5/Factory | Hacked Mic. Fission Core | -5/Factory | Hacked Mass Driver | -5/Factory | Hacked Antigrav System | -5/Factory | Hacked Autogun | -5/Factory | Hacked Cmb. Gravmag System | -5/Factory | Hacked Hvy. Gauss Cannon | -4/Factory | Hacked Hyp. Mass Driver | -4/Factory | Hacked Alien Tech Used ----------------- Core Expander Achievements -------------- Rodney's Helpers SUBSUB Challenges ------------ None Game ------ Seed UltimateSurveybotFlamer Manual? 0 Play Time 04:55:58 Cumulative 778.2 hours Start 2026.09.11 @ 13:16:15 End 2026.09.12 @ 13:58:43 Sessions 3 Manual Loads 0 Difficulty Rogue Special Mode None Game No. 380 Rogue 380 Adventurer 0 Explorer 0 Win Type - Total 7 Types 3/0/2/1/0/0/0/0/0/1 Lore% 86 Gallery% 77 Achievement% 61 Wizard Run 0 Options --------- Layout 2 ASCII 0 Keyboard 1 Movement Vi Keybinds 0 Fullscreen 1 Font 16/Proggy Map View 55x47 Zoom Use 0% Tactical HUD 1 Map Filters NONE Filters NONE Steam 0 RUN: c31e9af3-9d2e-41cb-ad9d-6399e2a6746f